bitfinex/quotes_BTCUSD_20240718
["timestamp","ask_amount","ask_price","bid_price","bid_amount"]
[1721321094824,0.0237473,63901.0,63891.0,0.0621]
[1721321094825,0.0227473,63901.0,63900.0,0.0495]
[1721321095093,0.17712904,63901.0,63900.0,0.0495]
[1721321095311,0.17712904,63901.0,63900.0,0.0635]
[1721321095312,0.0227473,63901.0,63900.0,0.0635]
[1721321095563,0.0227473,63901.0,63900.0,0.532983]
[1721321095793,0.00833,63908.0,63901.0,0.208786]
[1721321096017,0.00833,63908.0,63901.0,0.0495]
[1721321096486,0.00833,63908.0,63901.0,0.052294]
[1721321096702,0.00833,63908.0,63901.0,0.0495]
[1721321097217,0.00833,63908.0,63901.0,0.0625]
[1721321097448,0.00833,63908.0,63901.0,0.0765]
[1721321097686,0.00833,63908.0,63906.0,0.0495]
[1721321097907,0.00833,63908.0,63904.0,0.0495]
[1721321098151,0.00833,63908.0,63906.0,0.07717479]
[1721321098842,0.00833,63908.0,63906.0,0.12667479]
[1721321100473,0.00833,63908.0,63906.0,0.13967479]
[1721321100939,0.00833,63908.0,63906.0,0.15367479]
[1721321101389,0.00833,63908.0,63906.0,0.31328296]
[1721321101616,0.00833,63908.0,63906.0,0.62624196]
[1721321101858,0.00833,63908.0,63907.0,0.205977]
[1721321102076,0.00833,63908.0,63907.0,0.208771]
[1721321102317,0.00833,63908.0,63907.0,0.52206013]
[1721321103013,0.00833,63908.0,63907.0,0.518931]
[1721321103257,0.00833,63908.0,63907.0,0.530931]
[1721321103455,0.00833,63908.0,63907.0,0.544931]
[1721321104325,0.1,63914.0,63913.0,0.0495]
[1721321104565,0.25438174,63914.0,63910.0,0.0495]
[1721321104785,0.1,63914.0,63913.0,0.12667479]
[1721321105672,0.1,63914.0,63913.0,0.13167479]
[1721321106164,0.1,63914.0,63913.0,0.66196179]
[1721321106415,0.1,63914.0,63913.0,0.97488679]
[1721321106635,0.1,63914.0,63913.0,0.66196179]
[1721321106856,0.1,63914.0,63913.0,0.98162379]
[1721321107093,0.5,63917.0,63916.0,0.518602]
[1721321107314,0.6,63917.0,63916.0,0.51707642]
[1721321108441,0.6,63917.0,63916.0,0.52007642]
[1721321108877,0.6,63917.0,63916.0,0.52207642]
[1721321109094,0.6,63917.0,63916.0,0.054237]
[1721321109544,1.22373874,63917.0,63916.0,0.005]
[1721321109796,0.75438174,63917.0,63914.0,0.049237]
[1721321110022,0.25438174,63916.0,63915.0,0.049237]
[1721321111144,0.1,63916.0,63915.0,0.049237]
[1721321111387,0.31284,63931.0,63922.0,0.049237]
[1721321111609,0.312936,63932.0,63931.0,0.049237]
[1721321111610,0.15448174,63932.0,63931.0,0.049237]
[1721321111838,0.15448174,63932.0,63930.0,0.049237]
[1721321112062,0.15448174,63932.0,63929.0,0.07717479]
[1721321112063,0.15448174,63932.0,63931.0,0.049237]
[1721321112282,0.5,63931.0,63930.0,0.049237]
[1721321112726,0.15448174,63932.0,63930.0,0.049237]
[1721321113170,0.15448174,63932.0,63924.0,0.049237]
[1721321113171,0.15438174,63931.0,63924.0,0.049237]
[1721321113396,0.156422,63930.0,63927.0,0.049237]
[1721321113667,0.31080474,63929.0,63928.0,0.049237]
[1721321113873,0.41080474,63929.0,63928.0,0.049237]
[1721321114098,0.72365174,63929.0,63928.0,0.049237]
[1721321114317,0.5,63925.0,63916.0,0.049237]
[1721321114546,0.5,63925.0,63918.0,0.049237]
[1721321114547,0.156447,63920.0,63918.0,0.049237]
[1721321114769,0.156447,63920.0,63919.0,0.049237]
[1721321115001,0.256447,63920.0,63919.0,0.049237]
[1721321115218,0.1,63920.0,63919.0,0.049237]
[1721321115648,0.312842,63930.0,63927.0,0.049237]
[1721321115870,0.313842,63930.0,63927.0,0.050237]
[1721321116095,0.156425,63928.0,63927.0,0.050237]
[1721321116371,0.62365774,63928.0,63927.0,0.050237]
[1721321116587,0.62365774,63928.0,63927.0,0.049237]
[1721321117297,0.312856,63927.0,63925.0,0.049237]
[1721321117514,0.15438174,63926.0,63920.0,0.07717479]
[1721321117766,0.156443,63921.0,63920.0,0.07717479]
[1721321118001,0.156438,63923.0,63922.0,0.049237]
[1721321118239,0.156442,63922.0,63921.0,0.049237]
[1721321118461,0.41082374,63922.0,63921.0,0.049237]
[1721321119133,0.25438174,63922.0,63921.0,0.049237]
[1721321119356,0.1,63922.0,63921.0,0.049237]
[1721321119573,0.5,63933.0,63929.0,0.049237]
[1721321119802,0.312847,63929.0,63926.0,0.049237]
[1721321120022,0.156428,63928.0,63926.0,0.049237]
[1721321120317,0.312833,63932.0,63927.0,0.049237]
[1721321120538,0.0632,63940.0,63930.0,0.049237]
[1721321120539,0.469255,63931.0,63930.0,0.049237]
[1721321120751,0.782092,63931.0,63930.0,0.049237]
[1721321121443,0.93647374,63931.0,63930.0,0.049237]
[1721321121664,1.03647374,63931.0,63930.0,0.049237]
[1721321121901,0.469263,63930.0,63929.0,0.051237]
[1721321122108,0.72364474,63930.0,63929.0,0.050237]
[1721321122848,1.03648674,63930.0,63929.0,0.17919037]
[1721321123070,1.14013541,63930.0,63929.0,0.17919037]
[1721321123286,1.14013541,63930.0,63929.0,0.13095337]
[1721321123505,1.14013541,63930.0,63929.0,0.18019037]
[1721321123735,1.14013541,63930.0,63929.0,0.13095337]
[1721321123959,1.03648674,63930.0,63929.0,0.13095337]
[1721321124199,1.03648674,63930.0,63929.0,0.17919037]
[1721321125107,1.03648674,63930.0,63929.0,0.12995337]
[1721321125567,1.84932874,63930.0,63929.0,0.13095435]
[1721321125808,1.45832374,63930.0,63922.0,0.049237]
[1721321126069,0.469321,63922.0,63921.0,0.049237]
[1721321126286,0.93658374,63922.0,63921.0,0.17921198]
[1721321126508,1.03658374,63922.0,63921.0,0.12997498]
[1721321126747,1.34946474,63922.0,63921.0,0.12997498]
[1721321127667,1.37394954,63922.0,63921.0,0.12997498]
[1721321128098,0.1244848,63922.0,63921.0,0.17921198]
[1721321128288,0.1244848,63922.0,63921.0,0.18221198]
[1721321128289,0.5938058,63922.0,63921.0,0.18221198]
[1721321128616,0.5938058,63922.0,63921.0,0.18220126]
[1721321129303,0.156429,63927.0,63926.0,0.049237]
[1721321129555,0.28091021,63927.0,63926.0,0.17920126]
[1721321129764,0.59376621,63927.0,63926.0,0.17920126]
[1721321130261,0.90662221,63927.0,63926.0,0.12996426]
[1721321130476,0.469321,63922.0,63921.0,0.12641179]
[1721321130733,0.96106495,63922.0,63921.0,0.25638186]
[1721321132061,0.96106495,63922.0,63921.0,0.12641179]
[1721321132276,0.96106495,63922.0,63921.0,0.25637954]
[1721321132277,0.93658374,63922.0,63921.0,0.25637954]
[1721321132512,0.62370274,63922.0,63921.0,0.25637954]
[1721321132747,0.64818536,63922.0,63921.0,0.25637576]
[1721321134623,0.156436,63924.0,63923.0,0.049237]
[1721321134835,0.72368874,63924.0,63923.0,0.049237]
[1721321135068,0.74816992,63924.0,63923.0,0.17919329]
[1721321135533,0.12448118,63924.0,63923.0,0.17919329]
[1721321135817,0.469255,63931.0,63930.0,0.049237]
[1721321136053,0.96095471,63931.0,63930.0,0.049237]
[1721321136279,0.782105,63930.0,63929.0,0.049237]
[1721321136521,0.782105,63930.0,63929.0,0.17919205]
[1721321136522,0.96096771,63930.0,63929.0,0.17919205]
[1721321137476,0.96096771,63930.0,63929.0,0.12995505]
[1721321137718,1.27380971,63930.0,63929.0,0.12995505]
[1721321137957,0.78224,63919.0,63918.0,0.04595366]
[1721321138171,0.156462,63913.0,63912.0,0.12641179]
[1721321138402,0.80679297,63913.0,63912.0,0.25639349]
[1721321138646,0.80679297,63913.0,63912.0,0.60348702]
[1721321138647,0.49386797,63913.0,63912.0,0.60348702]
[1721321138868,0.49386797,63913.0,63912.0,0.47350532]
[1721321139088,0.96117471,63913.0,63912.0,0.42426832]
[1721321139340,0.64824971,63913.0,63912.0,0.47350532]
[1721321140477,1.27409971,63913.0,63912.0,0.35309353]
[1721321140698,1.37409971,63913.0,63912.0,0.35309353]
[1721321140887,1.37409971,63913.0,63912.0,0.42282511]
[1721321141141,1.37409971,63913.0,63912.0,0.006]
[1721321141355,1.37409971,63913.0,63912.0,0.12895023]
[1721321141581,1.37409971,63913.0,63912.0,0.47607713]
[1721321141814,1.37409971,63913.0,63912.0,0.10171073]
[1721321142697,1.37409971,63913.0,63912.0,0.055237]
[1721321142913,1.37409971,63913.0,63912.0,0.13241179]
[1721321142914,0.74824971,63913.0,63912.0,0.13241179]
[1721321143123,0.74824971,63913.0,63912.0,0.47951083]
[1721321143124,0.1,63913.0,63912.0,0.47951083]
[1721321143388,0.0656,63929.0,63927.0,0.049237]
[1721321143587,0.96099244,63928.0,63927.0,0.07717479]
[1721321144076,0.49171644,63928.0,63924.0,0.049237]
[1721321144289,0.156433,63925.0,63924.0,0.049237]
[1721321144524,0.64816444,63925.0,63924.0,0.049237]
[1721321144721,0.15644,63922.0,63921.0,0.049237]
[1721321144858,0.2809237,63922.0,63921.0,0.049237]
[1721321145095,0.5938047,63922.0,63921.0,0.049237]
[1721321146355,0.1244837,63922.0,63921.0,0.049237]
[1721321146775,0.2809237,63922.0,63921.0,0.049237]
[1721321147765,0.5978047,63922.0,63921.0,0.049237]
[1721321148642,0.42065758,63922.0,63920.0,0.12641179]
[1721321148890,0.78225,63918.0,63917.0,0.049237]
[1721321149112,0.96111544,63918.0,63917.0,0.049237]
[1721321149328,0.96111544,63918.0,63915.0,0.049237]
[1721321149329,0.156455,63916.0,63915.0,0.049237]
[1721321149543,0.64823044,63916.0,63915.0,0.049237]
[1721321149774,0.98749198,63916.0,63915.0,0.049237]
[1721321150438,0.98749336,63916.0,63915.0,0.049237]
[1721321150655,0.156457,63915.0,63914.0,0.049237]
[1721321150937,0.83312362,63915.0,63914.0,0.049237]
[1721321151985,0.83312362,63915.0,63914.0,0.053237]
[1721321152633,0.92690949,63915.0,63914.0,0.053237]
[1721321153272,0.05083662,63915.0,63914.0,0.056237]
[1721321153497,0.0244837,63915.0,63914.0,0.056237]
[1721321153739,0.469339,63920.0,63919.0,0.049237]
[1721321153968,0.62014642,63920.0,63919.0,0.049237]
[1721321154187,0.93304042,63920.0,63919.0,0.049237]
[1721321154872,0.24458196,63920.0,63919.0,0.049237]
[1721321155111,0.15080742,63920.0,63919.0,0.049237]
[1721321155355,0.15280742,63920.0,63919.0,0.049237]
[1721321156661,0.12648457,63920.0,63919.0,0.049237]
[1721321156875,0.05228532,63920.0,63919.0,0.049237]
[1721321157100,0.15228532,63920.0,63919.0,0.049237]
[1721321157301,0.15528532,63920.0,63919.0,0.05015]
[1721321158359,0.05528532,63920.0,63919.0,0.11275]
[1721321158651,0.02948457,63920.0,63919.0,0.11275]
[1721321159737,0.05493838,63920.0,63919.0,0.11275]
[1721321159946,0.0543436,63920.0,63919.0,0.11275]
[1721321161481,0.2107886,63920.0,63919.0,0.05015]
[1721321161723,0.84070019,63920.0,63919.0,0.000913]
[1721321161937,1.08473046,63920.0,63919.0,0.000913]
[1721321162153,0.99095234,63920.0,63919.0,0.000913]
[1721321162390,1.79467037,63920.0,63919.0,0.000913]
[1721321162603,1.863108,63920.0,63919.0,0.000913]
[1721321162827,2.01745757,63920.0,63919.0,0.000913]
[1721321163033,1.92992488,63920.0,63919.0,0.000913]
[1721321163243,2.40649949,63920.0,63919.0,0.000913]
[1721321163463,2.40573649,63920.0,63919.0,0.000913]
[1721321163707,2.7481196,63920.0,63919.0,0.000913]
[1721321163915,1.93549592,63920.0,63919.0,0.000913]
[1721321164151,1.93349592,63920.0,63919.0,0.000913]
[1721321164353,1.93349592,63920.0,63919.0,0.001913]
[1721321164354,1.94149592,63920.0,63919.0,0.001913]
[1721321164561,2.45049592,63920.0,63919.0,0.002913]
[1721321164990,1.63760492,63920.0,63919.0,0.002913]
[1721321165463,1.63760492,63920.0,63919.0,0.05215]
[1721321165464,1.61474382,63920.0,63919.0,0.05215]
[1721321165677,1.10185153,63920.0,63919.0,0.05215]
[1721321166116,0.9061508,63920.0,63919.0,0.002913]
[1721321166371,1.2190418,63920.0,63919.0,0.05215]
[1721321166579,1.2190418,63920.0,63919.0,0.002913]
[1721321166795,1.37339137,63920.0,63919.0,0.002913]
[1721321167215,1.68628237,63920.0,63919.0,0.002913]
[1721321167419,1.5690921,63920.0,63919.0,0.002913]
[1721321167631,1.41474253,63920.0,63919.0,0.002913]
[1721321168683,1.39098431,63920.0,63919.0,0.002913]
[1721321168910,1.41452498,63920.0,63919.0,0.002913]
[1721321169119,1.4146746,63920.0,63919.0,0.002913]
[1721321172528,1.4147265,63920.0,63919.0,0.002913]
[1721321172773,1.56907607,63920.0,63919.0,0.002913]
[1721321173208,1.4147265,63920.0,63919.0,0.002913]
[1721321175024,1.81034957,63920.0,63919.0,0.002913]
[1721321175266,1.95084957,63920.0,63919.0,0.002913]
[1721321175471,1.95161257,63920.0,63919.0,0.002913]
[1721321175697,1.86813831,63920.0,63919.0,0.002913]
[1721321175937,2.12719892,63920.0,63919.0,0.002913]
[1721321176173,2.12796192,63920.0,63919.0,0.002913]
[1721321176396,2.44085292,63920.0,63919.0,0.002913]
[1721321176658,2.12719892,63920.0,63919.0,0.002913]
[1721321177127,2.3815078,63920.0,63919.0,0.002913]
[1721321177347,2.44164685,63920.0,63919.0,0.002913]
[1721321177573,2.60694685,63920.0,63919.0,0.002913]
[1721321177797,1.408293,63907.0,63897.0,0.002794]
[1721321178015,1.408293,63907.0,63896.0,0.07717479]
[1721321178016,1.93632694,63907.0,63896.0,0.07717479]
[1721321178241,1.93632694,63907.0,63889.0,0.14267479]
[1721321178242,2.49726299,63907.0,63889.0,0.12641179]
[1721321178479,2.49726299,63907.0,63894.0,0.049237]
[1721321178721,2.49726299,63907.0,63895.0,0.049237]
[1721321178961,2.49679373,63907.0,63893.0,0.049237]
[1721321179190,2.49755673,63907.0,63893.0,0.049237]
[1721321179411,2.6529063,63907.0,63906.0,0.006913]
[1721321179625,2.7294063,63907.0,63906.0,0.006913]
[1721321179856,2.7294063,63907.0,63906.0,0.000913]
[1721321179857,2.7284063,63907.0,63906.0,0.000913]
[1721321180069,2.4146893,63907.0,63906.0,0.000913]
[1721321180307,2.4236893,63907.0,63906.0,0.008913]
[1721321180766,2.4236893,63907.0,63906.0,0.001913]
[1721321180981,2.4306893,63907.0,63906.0,0.002913]
[1721321181852,2.11103973,63907.0,63906.0,0.002913]
[1721321182286,2.25151534,63907.0,63906.0,0.002913]
[1721321182930,2.11103973,63907.0,63906.0,0.002913]
[1721321183360,2.11180273,63907.0,63906.0,0.002913]
[1721321183583,2.59005673,63907.0,63906.0,0.002913]
[1721321183801,2.7444063,63907.0,63906.0,0.002913]
[1721321184251,2.8109063,63907.0,63906.0,0.002913]
[1721321185148,2.81106163,63907.0,63906.0,0.002913]
[1721321187168,3.12401563,63907.0,63906.0,1e-06]
[1721321187367,0.5,63895.0,63890.0,0.002794]
[1721321187575,0.5,63895.0,63890.0,0.052031]
[1721321187576,0.469549,63891.0,63890.0,0.052031]
[1721321187783,0.98431752,63891.0,63890.0,0.049237]
[1721321187989,0.156507,63895.0,63894.0,0.049237]
[1721321188264,0.62390174,63895.0,63894.0,0.049237]
[1721321188442,0.31088874,63895.0,63894.0,0.049237]
[1721321188649,0.62390174,63895.0,63894.0,0.049237]
[1721321189283,0.33577116,63895.0,63894.0,0.049237]
[1721321189710,0.02488242,63895.0,63894.0,0.049237]
[1721321189938,0.001,63895.0,63894.0,0.109937]
[1721321190582,0.156492,63901.0,63894.0,0.109937]
[1721321190783,0.1,63902.0,63901.0,0.049237]
[1721321190925,0.256489,63902.0,63901.0,0.049237]
[1721321191653,0.0701369,63911.0,63905.0,0.126137]
[1721321191895,0.15645,63918.0,63917.0,0.049237]
[1721321192175,0.67185873,63918.0,63917.0,0.049237]
[1721321192378,0.04812699,63918.0,63917.0,0.347789]
[1721321192492,0.156423,63930.0,63923.0,0.049237]
[1721321193032,0.156424,63929.0,63923.0,0.049237]
[1721321193273,0.156421,63930.0,63923.0,0.049237]
[1721321193516,0.156423,63929.0,63923.0,0.049237]
[1721321193991,0.00783,63924.0,63923.0,0.050237]
[1721321194721,0.01483,63924.0,63923.0,0.051237]
[1721321196602,0.01483,63924.0,63923.0,0.113137]
[1721321200204,0.00783,63924.0,63923.0,0.112137]
[1721321200686,0.00083,63924.0,63923.0,0.111137]
[1721321201632,0.00183,63924.0,63923.0,0.111137]
[1721321203424,0.00183,63924.0,63918.0,0.002794]
[1721321203425,0.312896,63919.0,63918.0,0.002794]
[1721321203679,0.156448,63919.0,63918.0,0.049237]
[1721321204137,0.00183,63924.0,63923.0,0.049237]
[1721321208402,0.00083,63924.0,63923.0,0.049237]
[1721321210739,0.00083,63924.0,63918.0,0.005]
[1721321210740,0.469344,63919.0,63918.0,0.005]
[1721321210962,0.469344,63919.0,63918.0,0.054237]
[1721321210963,1.00524731,63919.0,63918.0,0.054237]
[1721321212112,1.00624731,63919.0,63918.0,0.056237]
[1721321212622,0.93862174,63919.0,63918.0,0.061237]
[1721321212840,0.62572574,63919.0,63918.0,0.061237]
[1721321213070,0.001,63919.0,63918.0,0.056237]
[1721321214201,0.00083,63924.0,63923.0,0.049237]
[1721321214438,0.157265,63924.0,63923.0,0.049237]
[1721321214676,0.00083,63924.0,63923.0,0.049237]
[1721321214912,0.157265,63924.0,63923.0,0.049237]
[1721321215135,0.470136,63924.0,63923.0,0.049237]
[1721321215586,0.558436,63924.0,63923.0,0.049237]
[1721321216081,0.470136,63924.0,63923.0,0.049237]
[1721321216315,0.470136,63924.0,63923.0,0.048737]
[1721321216529,0.472136,63924.0,63923.0,0.048737]
[1721321216753,0.785007,63924.0,63913.0,0.002794]
[1721321216973,0.782206,63922.0,63921.0,0.048737]
[1721321217196,1.24947274,63922.0,63921.0,0.048737]
[1721321217426,1.27334922,63922.0,63921.0,0.048737]
[1721321218545,1.27334922,63922.0,63921.0,0.050737]
[1721321219460,1.41338432,63922.0,63921.0,0.050737]
[1721321219903,1.41338432,63922.0,63921.0,0.051737]
[1721321220378,1.41338432,63922.0,63921.0,0.050737]
[1721321220606,0.156455,63916.0,63915.0,0.048737]
[1721321220826,0.469365,63916.0,63915.0,0.048737]
[1721321221261,0.18066908,63916.0,63915.0,0.048737]
[1721321221487,0.15438174,63921.0,63915.0,0.048737]
[1721321221488,0.312887,63921.0,63915.0,0.048737]
[1721321221719,0.312887,63921.0,63920.0,0.12591179]
[1721321221720,0.46933,63921.0,63920.0,0.12591179]
[1721321221942,0.002,63922.0,63921.0,0.048737]
[1721321222165,0.02935067,63922.0,63921.0,0.048737]
[1721321222389,0.02735067,63922.0,63921.0,0.048737]
[1721321222622,0.18079067,63922.0,63921.0,0.048737]
[1721321223350,0.157267,63924.0,63921.0,0.048737]
[1721321223576,0.04895889,63923.0,63922.0,0.048737]
[1721321223800,0.02447627,63923.0,63922.0,0.115137]
[1721321224260,0.04895824,63923.0,63922.0,0.115137]
[1721321224935,0.02448197,63923.0,63922.0,0.115137]
[1721321225190,0.02434046,63923.0,63922.0,0.115137]
[1721321225378,0.04882208,63923.0,63922.0,0.115137]
[1721321226259,0.04882208,63923.0,63922.0,0.048737]
[1721321226609,0.469387,63913.0,63912.0,0.048737]
[1721321226827,0.469387,63913.0,63911.0,0.048737]
[1721321226828,0.156465,63912.0,63911.0,0.048737]
[1721321227041,0.51821708,63912.0,63911.0,0.048737]
[1721321227701,0.83114708,63912.0,63911.0,0.048737]
[1721321228144,0.51821708,63912.0,63911.0,0.048737]
[1721321228388,0.04921439,63912.0,63911.0,0.048737]
[1721321228605,0.469331,63921.0,63920.0,0.048737]
[1721321228795,0.61894548,63921.0,63920.0,0.048737]
[1721321228938,0.93183148,63921.0,63920.0,0.048737]
[1721321229369,0.61894348,63921.0,63920.0,0.048737]
[1721321229771,0.93182948,63921.0,63920.0,0.048737]
[1721321230411,0.61894348,63921.0,63920.0,0.048737]
[1721321231021,0.51894348,63921.0,63920.0,0.048737]
[1721321231257,0.04961448,63921.0,63920.0,0.048737]
[1721321231489,0.00083,63924.0,63923.0,0.048737]
[1721321231748,0.02531022,63924.0,63923.0,0.048737]
[1721321231984,0.00083,63924.0,63923.0,0.048737]
[1721321233689,0.02531008,63924.0,63923.0,0.048737]
[1721321238942,0.469329,63921.0,63920.0,0.004]
[1721321239166,0.83219601,63921.0,63920.0,0.052737]
[1721321239394,0.83219925,63921.0,63920.0,0.052737]
[1721321239590,0.51931325,63921.0,63920.0,0.052737]
[1721321239812,0.83219925,63921.0,63920.0,0.052737]
[1721321240244,0.51931325,63921.0,63920.0,0.052737]
[1721321240464,0.51931325,63921.0,63920.0,0.048737]
[1721321240674,0.51931325,63921.0,63920.0,0.049737]
[1721321240675,0.50380908,63921.0,63920.0,0.049737]
[1721321240891,0.84371755,63921.0,63920.0,0.049737]
[1721321241097,0.84471755,63921.0,63920.0,0.049737]
[1721321241528,0.53183403,63921.0,63920.0,0.049737]
[1721321241810,0.83372003,63921.0,63920.0,0.048737]
[1721321242068,0.83372003,63921.0,63913.0,0.0626]
[1721321242069,0.78224,63919.0,63918.0,0.048737]
[1721321242275,0.83374503,63919.0,63918.0,0.048737]
[1721321243352,0.20588677,63919.0,63911.0,0.048737]
[1721321243579,0.07734883,63921.0,63911.0,0.048737]
[1721321243580,0.469395,63912.0,63911.0,0.048737]
[1721321243803,0.52090003,63912.0,63911.0,0.048737]
[1721321244677,0.52124953,63912.0,63911.0,0.048737]
[1721321245315,0.52224953,63912.0,63911.0,0.055737]
[1721321245774,0.52224953,63912.0,63911.0,0.063737]
[1721321245775,0.02648008,63912.0,63911.0,0.063737]
[1721321246236,0.02648008,63912.0,63911.0,0.056737]
[1721321246237,0.002,63912.0,63911.0,0.056737]
[1721321246512,0.001,63912.0,63911.0,0.28181179]
[1721321246957,0.001,63912.0,63911.0,0.19861179]
[1721321247181,0.156458,63915.0,63914.0,0.048737]
[1721321247387,0.0517519,63915.0,63914.0,0.048737]
[1721321247591,0.29237941,63915.0,63914.0,0.048737]
[1721321247817,0.05175218,63915.0,63914.0,0.048737]
[1721321248473,0.05175218,63915.0,63914.0,0.055737]
[1721321248914,0.02448409,63915.0,63914.0,0.055737]
[1721321249141,0.43013846,63922.0,63914.0,0.055737]
[1721321249142,0.09380356,63928.0,63923.0,0.048737]
[1721321249397,0.00083,63932.0,63923.0,0.518051]
[1721321249664,0.00083,63932.0,63923.0,0.048737]
[1721321249882,0.157247,63932.0,63923.0,0.048737]
[1721321250099,0.157246,63932.0,63923.0,0.048737]
[1721321250331,0.157247,63932.0,63923.0,0.048737]
[1721321250560,0.15642,63931.0,63923.0,0.048737]
[1721321250798,0.156424,63929.0,63923.0,0.048737]
[1721321251006,0.156428,63928.0,63923.0,0.048737]
[1721321251221,0.00183,63924.0,63923.0,0.048737]
[1721321257523,0.00183,63924.0,63923.0,0.051531]
[1721321257736,0.00183,63924.0,63923.0,0.048737]
[1721321258366,0.00183,63924.0,63923.0,0.20830334]
[1721321258597,0.00183,63924.0,63923.0,0.518051]
[1721321258812,0.00183,63924.0,63923.0,0.880927]
[1721321259048,0.00183,63924.0,63923.0,1.276703]
[1721321259476,0.00183,63924.0,63923.0,1.43108474]
[1721321259705,0.00183,63924.0,63923.0,1.49228474]
[1721321260394,0.00183,63924.0,63923.0,1.80516074]
[1721321261523,0.00183,63924.0,63923.0,1.49228474]
[1721321263428,0.00283,63924.0,63923.0,1.50628474]
[1721321263649,0.00183,63924.0,63923.0,1.50628474]
[1721321264080,0.00283,63924.0,63923.0,1.52028474]
[1721321265220,0.00283,63924.0,63923.0,1.315903]
[1721321265423,0.00283,63924.0,63923.0,1.003027]
[1721321265855,0.00283,63924.0,63923.0,1.053027]
[1721321266727,0.00283,63924.0,63923.0,1.365903]
[1721321268063,0.00283,63924.0,63923.0,0.076737]
[1721321268285,0.00283,63924.0,63923.0,0.233175]
[1721321268746,0.00283,63924.0,63923.0,0.86205521]
[1721321268934,0.00283,63924.0,63923.0,0.858927]
[1721321269378,0.00283,63924.0,63923.0,0.908927]
[1721321269608,0.00283,63924.0,63923.0,0.858927]
[1721321270695,0.00283,63924.0,63923.0,0.546051]
[1721321271340,0.00283,63924.0,63923.0,0.233175]
[1721321272940,0.00283,63924.0,63923.0,0.076737]
[1721321276170,0.00183,63924.0,63923.0,0.062737]
[1721321276439,0.00183,63924.0,63923.0,0.076737]
[1721321276440,0.159265,63924.0,63923.0,0.076737]
[1721321276669,0.471136,63924.0,63923.0,0.048737]
[1721321277133,0.159265,63924.0,63923.0,0.058737]
[1721321277337,0.18420608,63924.0,63923.0,0.071737]
[1721321277541,0.20868793,63924.0,63923.0,0.071737]
[1721321277760,0.18420608,63924.0,63923.0,0.071737]
[1721321277993,0.18520608,63924.0,63923.0,0.080737]
[1721321278433,0.18320608,63924.0,63923.0,0.058737]
[1721321279060,0.00183,63924.0,63923.0,0.058737]
[1721321279291,0.00083,63924.0,63923.0,0.048737]
[1721321279501,0.00083,63924.0,63923.0,0.052737]
[1721321279718,0.00083,63924.0,63923.0,0.055737]
[1721321280408,0.157265,63924.0,63923.0,0.055737]
[1721321281303,0.89437749,63924.0,63923.0,0.055737]
[1721321281952,0.58150649,63924.0,63923.0,0.055737]
[1721321282162,0.26863549,63924.0,63923.0,0.055737]
[1721321282380,0.26863549,63924.0,63923.0,0.051737]
[1721321282381,0.20643549,63924.0,63923.0,0.051737]
[1721321282824,0.05000049,63924.0,63923.0,0.054737]
[1721321283051,0.02531096,63924.0,63923.0,0.054737]
[1721321283273,0.02531096,63924.0,63923.0,0.716451]
[1721321283274,0.00083,63924.0,63923.0,0.716451]
[1721321283472,0.00083,63924.0,63923.0,0.713451]
[1721321284124,0.00083,63924.0,63923.0,0.662451]
[1721321284779,0.00083,63924.0,63923.0,0.660451]
[1721321285217,0.00083,63924.0,63923.0,0.663451]
[1721321285442,0.00083,63924.0,63923.0,0.713451]
[1721321285656,0.00083,63924.0,63923.0,0.716451]
[1721321285879,0.00083,63924.0,63923.0,1.18070874]
[1721321286312,0.00083,63924.0,63923.0,0.82183274]
[1721321286767,0.00083,63924.0,63923.0,0.73953274]
[1721321287399,0.00083,63924.0,63923.0,0.272275]
[1721321287605,0.00083,63924.0,63923.0,0.585151]
[1721321288326,0.00083,63924.0,63923.0,0.635151]
[1721321289065,0.00083,63924.0,63923.0,1.10240874]
[1721321289673,0.00083,63924.0,63923.0,1.41528474]
[1721321290566,0.00083,63924.0,63923.0,1.41619774]
[1721321293650,0.00083,63924.0,63923.0,1.05332174]
[1721321294523,0.00083,63924.0,63923.0,1.10332174]
[1721321294956,0.00083,63924.0,63923.0,1.41619774]
[1721321295186,0.00083,63924.0,63923.0,1.80467374]
[1721321295405,0.00083,63924.0,63923.0,1.74470728]
[1721321296560,0.00083,63924.0,63923.0,1.61079774]
[1721321296767,0.00083,63924.0,63923.0,1.58779774]
[1721321297003,0.00183,63924.0,63923.0,1.59579774]
[1721321297435,0.00183,63924.0,63923.0,1.60579774]
[1721321297436,0.00283,63924.0,63923.0,1.60579774]
[1721321301123,0.00283,63924.0,63923.0,1.62879774]
[1721321301569,0.00283,63924.0,63923.0,1.94167374]
[1721321302708,0.00283,63924.0,63923.0,1.62879774]
[1721321304798,0.00283,63924.0,63923.0,1.60579774]
[1721321307587,0.00283,63924.0,63923.0,1.62879774]
[1721321308255,0.00283,63924.0,63923.0,1.94167374]
[1721321308437,0.00283,63924.0,63923.0,1.62879774]
[1721321309523,0.00283,63924.0,63923.0,1.94167374]
[1721321312631,0.00283,63924.0,63923.0,2.0715809]
[1721321313079,0.00283,63924.0,63923.0,1.94167374]
[1721321313300,0.00283,63924.0,63923.0,2.07157936]
[1721321313938,0.00283,63924.0,63923.0,1.94167374]
[1721321314156,0.00283,63924.0,63923.0,2.07158535]
[1721321315762,0.00283,63924.0,63923.0,1.53019774]
[1721321315990,0.00283,63924.0,63923.0,1.47009774]
[1721321316441,0.00283,63924.0,63923.0,1.05722174]
[1721321316661,0.00283,63924.0,63923.0,1.00722174]
[1721321316881,0.00283,63924.0,63923.0,1.05722174]
[1721321317750,0.00283,63924.0,63923.0,1.37009774]
[1721321318160,0.00283,63924.0,63923.0,1.46919774]
[1721321318406,0.00283,63924.0,63923.0,1.56919774]
[1721321320372,0.00283,63924.0,63923.0,1.69910986]
[1721321320811,0.00283,63924.0,63923.0,1.56919774]
[1721321321459,0.00283,63924.0,63923.0,1.54619774]
[1721321321882,0.00283,63924.0,63923.0,1.15722174]
[1721321322328,0.00283,63924.0,63923.0,1.24752174]
[1721321322999,0.00283,63924.0,63923.0,1.56039774]